Cogmind - Beta 15 @@@ ROGUE MODE // 2025.06.24 @ 14:00:02 Player: Miguell Result: Destroyed by 6T-I96(R) with Subdweller Laser Performance ------------- Evolutions (0) 0 Regions Visited (3) 600 Robots Destroyed (8) 40 Value Destroyed (178) 178 Prototype IDs (0) 0 Alien Tech Used (0) 0 Bonus (0) 0 TOTAL SCORE: 818 Bonus ------- None Cogmind --------- Core Integrity 0/250 Matter 300/300 Energy 100/100 System Corruption 0% Temperature Cool (6) Movement Flying (37) Location -10/Subcaves Parts ------- > --- POWER (1) -------- (None) > --- PROPULSION (2) --- Flight Unit Flight Unit > --- UTILITY (2) ------ Improved Heat Sink Small Storage Unit > --- WEAPON (2) ------- Light Assault Rifle > --- INVENTORY (8) ---- Light Ion Engine Scrap Shield Heavy Explosive Trap Heavy Explosive Trap Heavy Explosive Trap Peak State ------------ > --- POWER ------------ Light Nuclear Core > --- PROPULSION ------- Flight Unit Flight Unit > --- UTILITY ---------- Improved Heat Sink Small Storage Unit > --- WEAPON ----------- Light Assault Rifle Light Assault Rifle > --- INVENTORY -------- Light Ion Engine Scrap Shield Heavy Explosive Trap Heavy Explosive Trap Heavy Explosive Trap Heavy Explosive Trap Heavy Explosive Trap [Rating: 12] Favorites ----------- Power Light Nuclear Core Engine Light Ion Engine Power Core Light Nuclear Core Propulsion Light Treads Treads Light Treads Flight Unit Flight Unit Utility Small Storage Unit Device Improved Heat Sink Storage Small Storage Unit Weapon Light Assault Rifle Ballistic Gun Light Assault Rifle Build | -11 -10 -10 -10 ------- Run | Yrd Mat Min Sub Slots Evolved . | . . . . Power . | . . . . Propulsion . | . . . . Utility . | . . . . Weapon . | . . . . Parts Attached 16 | 6 2 7 1 Power 4 | 1 1 2 . Engine 2 | 1 . 1 . Core 2 | . 1 1 . Reactor . | . . . . Propulsion 4 | 2 . 2 . Treads 2 | 2 . . . Leg . | . . . . Wheel . | . . . . Hover . | . . . . Flight 2 | . . 2 . Utility 3 | 1 1 1 . Device 1 | . . 1 . Storage 2 | 1 1 . . Processor . | . . . . Hackware . | . . . . Protection . | . . . . Artifact . | . . . . Weapon 5 | 2 . 2 1 Energy Gun . | . . . . Energy Cannon . | . . . . Ballistic Gun 5 | 2 . 2 1 Ballistic Cannon . | . . . . Launcher . | . . . . Special Weapon . | . . . . Impact Weapon . | . . . . Slashing Weapon . | . . . . Piercing Weapon . | . . . . Special Melee Weapon . | . . . . Unidentified Prototypes . | . . . . Parts Lost 5 | . . 3 2 Power 1 | . . . 1 Propulsion . | . . . . Utility . | . . . . Weapon 4 | . . 3 1 Highest Loss Streak 2 | . . 1 2 To Critical Strikes . | . . . . Average Backups 3 | 1 3 4 2 Power 1 | . 1 1 1 Propulsion . | . 2 1 . Utility . | . . . 1 Weapon . | . . 1 . Tool/Special . | . . . . Unused Backups 9 | . . 7 2 Power 1 | . . 1 . Propulsion 5 | . . 5 . Utility 3 | . . 1 2 Weapon . | . . . . Tool/Special . | . . . . Average Slot Usage (%) 97 | . 85 99 99 Engine 5 | . 10 6 . Core 8 | . 3 8 13 Treads 15 | . 28 17 . Flight 12 | . . 10 28 Device 3 | . . 1 14 Storage 23 | . 14 26 14 Ballistic Gun 27 | . 28 27 28 Peak Build Rating 12 | 6 9 11 12 Average Rating 7 | 1 6 8 11 On Entrance 6 | . 6 9 10 Naked Turns . | . . . . Heaviest Build 15 | 11 15 15 13 Greatest Support 40 | 40 40 40 8 Greatest Overweight (x) 3 | 2 . 3 1 Average Overweight (x) . | . . . . Largest Inventory Capacity 8 | 8 8 8 8 Average Capacity 7 | 6 8 8 8 Most Carried 8 | 5 5 8 8 Average Carried 5 | 1 3 7 7 Final Capacity 8 | 8 8 8 8 Final Carried 8 | 3 4 8 6 Class Distribution -------------------- 80% | Mutant 19% | Scavenger-Mutant Dominant Class ---------------- Mutant | -10/Materials Mutant | -10/Mines Scavenger-Mutant | -10/Subcaves Resources | -11 -10 -10 -10 ----------- Run | Yrd Mat Min Sub Matter Collected 502 | 184 43 265 10 Remotely . | . . . . Salvage Created 219 | . 43 176 . Parts 14 | . 2 12 . Haulers Intercepted . | . . . . Recyclers Shooed . | . . . . Parts Field Recycled . | . . . . Retrieved Matter . | . . . . Parts Self-Destructed 5 | . . . 5 Prevented . | . . . . Kills | -11 -10 -10 -10 ------- Run | Yrd Mat Min Sub Combat Hostiles Destroyed 8 | . 1 7 . Guns 8 | . 1 7 . Classes Destroyed 2 | . 1 1 . Swarmer 5 | . . 5 . Grunt 3 | . 1 2 . Best Kill Streak 3 | . 1 3 . Combat Bots Only 3 | . 1 3 . Max Kills in Single Turn 1 | . 1 1 . Gunslinging . | . . . . Exploded . | . . . . Melee . | . . . . Uniques/NPCs Destroyed . | . . . . Combat | -11 -10 -10 -10 -------- Run | Yrd Mat Min Sub Hostile Shots Fired 110 | . 10 90 10 Missed 24 | . 2 21 1 Hits 86 | . 8 69 9 Projectile 86 | . 8 69 9 Critical Strikes 1 | . 1 . . Damage Taken 920 | . 102 638 180 Core 252 | . 23 130 99 Absorbed by Shields . | . . . . Core Remaining (%) 100 | 100 . . . Volleys Fired 34 | . 5 29 . Largest 2 | . 2 2 . Hottest 40 | . 40 40 . Shots Fired 64 | . 10 54 . Gun 64 | . 10 54 . Cannon . | . . . . Launcher . | . . . . Special . | . . . . Kinetic 64 | . 10 54 . Thermal . | . . . . Explosive . | . . . . Electromagnetic . | . . . . Robot Hit Streak 10 | . 4 10 . Robot Miss Streak 3 | . 3 3 . Penetration Max . | . . . . Secondary Targets 2 | . . 2 . Max Gunslinging Chain 1 | . . 1 . Shots Hit Robots 45 | . 5 40 . Core Hits 17 | . 3 14 . Critical Kills . | . . . . Critical Parts Destroyed 1 | . . 1 . Critical Strikes 1 | . . 1 . Destroy 1 | . . 1 . Melee Attacks . | . . . . Impact . | . . . . Slashing . | . . . . Piercing . | . . . . Sneak Attacks . | . . . . Combat Hostiles . | . . . . Follow-up Attacks . | . . . . Damage Inflicted 460 | . 50 410 . Guns 460 | . 50 410 . Cannons . | . . . . Explosions . | . . . . Melee . | . . . . Ramming . | . . . . Kinetic 460 | . 50 410 . Thermal . | . . . . Explosive . | . . . . Electromagnetic . | . . . . Impact . | . . . . Slashing . | . . . . Piercing . | . . . . Highest Corruption . | . . . . Average Corruption . | . . . . Corruption Purged . | . . . . Corruption Blocked . | . . . . Overload Shots . | . . . . Overflow Damage . | . . . . Projectiles . | . . . . Explosions . | . . . . Melee . | . . . . Knockbacks . | . . . . Impact . | . . . . Kinetic . | . . . . Secondary . | . . . . Self-Inflicted Damage . | . . . . Shots . | . . . . Rammed . | . . . . Targets Rammed . | . . . . Kicked . | . . . . Crushed . | . . . . Highest Temperature 27 | . 27 17 . Average Temperature 7 | . 13 6 . Received Heat Transfer 180 | . 81 81 18 Siege Activations . | . . . . Martial Activations . | . . . . Shielding Activations . | . . . . Robots Disrupted . | . . . . Combat Hostiles . | . . . . Robots Corrupted . | . . . . Combat Hostiles . | . . . . Parts Fried . | . . . . Impact Corruptions . | . . . . Robots Melted . | . . . . Combat Hostiles . | . . . . Parts Melted . | . . . . Heat Transferred . | . . . . Parts Sabotaged . | . . . . Parts Stolen . | . . . . Parts Stripped . | . . . . Power Chain Reactions . | . . . . Alert | -11 -10 -10 -10 ------- Run | Yrd Mat Min Sub Maximum Alert Level . | . . . . Low Security (%) 100 | 100 100 100 . Level 1 . | . . . . Level 2 . | . . . . Level 3 . | . . . . Level 4 . | . . . . Level 5 . | . . . . High Security . | . . . . Max Security . | . . . . Peak Influence 66 | . 35 66 . Initial 9 | . . 9 . Average 13 | . 16 18 . Influence Increases 245 | . 45 200 . Destroy 0b10 Robot/C 160 | . 20 140 . Destroy Leader 40 | . 10 30 . Lose Combat Pursuer 45 | . 15 30 . Influence Decreases 245 | . 20 193 32 Entered New Map 33 | . . 16 17 Time Decay 192 | . 20 157 15 Lost Part 20 | . . 20 . Squads Dispatched . | . . . . Investigation . | . . . . Extermination . | . . . . Reinforcement . | . . . . Assault . | . . . . Garrison . | . . . . Intercept . | . . . . Searches Triggered . | . . . . Construction Impeded . | . . . . Haulers Reinforced . | . . . . Active Scanning Responses . | . . . . Cargo Convoy Interrupts . | . . . . Stealth | -11 -10 -10 -10 --------- Run | Yrd Mat Min Sub Distress Signals 1 | . 1 . . Communications Jammed . | . . . . Distress Signals . | . . . . Times Spotted 20 | . 4 13 3 Peak Tracking Total 3 | . 2 3 3 Tactical Retreats 2 | . 1 1 . Traps | -11 -10 -10 -10 ------- Run | Yrd Mat Min Sub Traps Triggered . | . . . . Indirectly . | . . . . Trap Hack Attempts . | . . . . Triggered . | . . . . Disarmed . | . . . . Reprogrammed . | . . . . Reused . | . . . . Traps Extracted . | . . . . Installed . | . . . . Triggered . | . . . . Most Traps Carried 5 | . . 5 5 Machines | -11 -10 -10 -10 ---------- Run | Yrd Mat Min Sub Machines Disabled . | . . . . Max in Single Turn . | . . . . Machines Repaired . | . . . . Machines Dismantled . | . . . . Machines Sabotaged . | . . . . Overloaded Fab Kills . | . . . . Hacking | -11 -10 -10 -10 --------- Run | Yrd Mat Min Sub Machines Accessed . | . . . . Terminals . | . . . . Fabricators . | . . . . Repair Stations . | . . . . Recycling Units . | . . . . Scanalyzers . | . . . . Garrison Access . | . . . . Total Hacks . | . . . . Successful . | . . . . Failed . | . . . . Catastrophic . | . . . . Database Lockouts . | . . . . Manual . | . . . . Terminals . | . . . . Fabricators . | . . . . Repair Stations . | . . . . Recycling Units . | . . . . Scanalyzers . | . . . . Garrison Access . | . . . . Terminal Hacks . | . . . . Fabricator Hacks . | . . . . Repair Station Hacks . | . . . . Recycling Unit Hacks . | . . . . Scanalyzer . | . . . . Garrison Access Hacks . | . . . . Unauthorized Hacks . | . . . . Terminals . | . . . . Fabricators . | . . . . Repair Stations . | . . . . Recycling Units . | . . . . Scanalyzers . | . . . . Garrison Access . | . . . . Data Cores Recovered . | . . . . Used . | . . . . Hacking Detections . | . . . . Full Trace Events . | . . . . Feedback Events . | . . . . Feedback Blocked . | . . . . Robot Schematics Acquired . | . . . . Robots Built . | . . . . Authchips . | . . . . Time . | . . . . Total Robot Build Rating . | . . . . Part Schematics Acquired . | . . . . Parts Built . | . . . . Authchips . | . . . . Time . | . . . . Total Part Build Rating . | . . . . Parts Repaired . | . . . . Time . | . . . . Parts Recycled . | . . . . Recycled Matter . | . . . . Retrieved Matter . | . . . . Retrieved Components . | . . . . Parts Scanalyzed . | . . . . Part Schematics Acquired . | . . . . Parts Damaged . | . . . . Bothacking | -11 -10 -10 -10 ------------ Run | Yrd Mat Min Sub Used RIF Installer . | . . . . Robots Hacked . | . . . . Non-combat . | . . . . Combat . | . . . . Robot Hacks Applied . | . . . . Relay Couplers Released . | . . . . Fabnet Peak Effective % . | . . . . Robots Rewired . | . . . . Allies Hacked . | . . . . Hacks Repelled . | . . . . Allies | -11 -10 -10 -10 -------- Run | Yrd Mat Min Sub Total Allies . | . . . . Largest Group . | . . . . Highest-Rated Group . | . . . . Highest-Rated Ally . | . . . . Total Orders . | . . . . Ally Attacks . | . . . . Total Damage . | . . . . Kills . | . . . . Allies Corrupted . | . . . . Allies Melted . | . . . . Intel | -11 -10 -10 -10 ------- Run | Yrd Mat Min Sub Active Infowar (turns) . | . . . . Robot Analysis Total . | . . . . Derelict Logs Recovered 1 | . . 1 . Drone Launches . | . . . . Drone Recoveries . | . . . . Exploration | -11 -10 -10 -10 ------------- Run | Yrd Mat Min Sub Turns Passed 1097 | 266 70 616 145 Spaces Moved 582 | 60 33 349 140 Core 16 | 16 . . . Treads 266 | 44 33 189 . Legs . | . . . . Wheels . | . . . . Hover . | . . . . Flight 300 | . . 160 140 Fastest Speed 37 | 50 160 117 37 Average Speed 133 | 147 160 141 101 Slowest Speed 280 | 160 160 280 117 Overloaded Moves . | . . . . Propulsion Burnouts . | . . . . Robots Hopped . | . . . . Potential Cave-ins . | . . . . Cave-ins Triggered . | . . . . Exploration Rate (%) 22 | 7 11 59 14 Regions Visited 3 Branch Regions 2 Pre-discovered Areas . | . . . . Known Exits Taken . | . . . . Unknown Exits Taken 3 | 1 1 1 . Scrap Searched 1 | . . 1 . Spaces Dug . | . . . . Terrain Destroyed . | . . . . Melee . | . . . . Projectile . | . . . . AOE . | . . . . Terrain Rammed . | . . . . Walls Destroyed . | . . . . Machines Disabled . | . . . . Actions | -11 -10 -10 -10 --------- Run | Yrd Mat Min Sub Total 852 | 238 42 427 145 Wait 178 | 164 . 14 . Move 579 | 59 32 348 140 Hop . | . . . . Pick Up 27 | 9 2 15 1 Fast Attach 3 | . . 3 . Attach 12 | 6 2 3 1 Detach 2 | . 1 1 . Swap 2 | . . 2 . Drop 15 | . . 12 3 Fire 34 | . 5 29 . Melee . | . . . . Ram . | . . . . Kick . | . . . . Crush . | . . . . Escape Stasis . | . . . . Rewire . | . . . . Trap . | . . . . Miscellaneous . | . . . . Route ------- -11/Scrapyard -10/Materials -10/Mines (discovered 2 exits: [*Mat] / [*Sub]) -10/Subcaves History --------- Turn | Location | Event 177 | -11/Scrapyard | Discovered new exit (range 16) 267 | -11/Scrapyard | Entered Materials 285 | -10/Materials | Discovered new exit (range 15) 306 | -10/Materials | Build established: Mutant 337 | -10/Materials | Entered Mines 476 | -10/Mines | Discovered new exit (range 15) 621 | -10/Mines | Found a hidden stash of uninstalled traps 779 | -10/Mines | Learned Materials security intel 871 | -10/Mines | Core integrity fell below 50% 947 | -10/Mines | Discovered new exit (range 6) 953 | -10/Mines | Entered Subcaves 954 | -10/Subcaves | Approached by a straggling Scientist 972 | -10/Subcaves | A swath of the cavern ceiling suddenly collapsed 1050 | -10/Subcaves | Core integrity fell below 20% 1098 | -10/Subcaves | Destroyed by 6T-I96(R) with Subdweller Laser Last Messages --------------- 00954_ 8M-90F(c): "Thank the algorithms! I was beginning to lose hope I'd never make it past all the Subs lurking out here." 00955_ UX-AK6(h) drops a Scrap Shield: "Protect yourself with this!" 00957_ 8M-90F(c): "Hey, let me tag along and I can get us both out of this nasty situation. At least I think I can... The group I got separated from was talking about a shortcut back to the UFD." 00958_ Dropped Heat Sink. 00959_ Acquired Scrap Shield. 00972_ UX-AK6(h) crushed by falling debris. 00972_ UX-AK6(h) system corrupted by crushing effect. A swath of the cavern ceiling suddenly collapses. 00972_ UX-AK6(h) system terminally corrupted. 00993_ Subatomizers dissect the Corrupted Myomer Leg. 00995_ Acquired 10 matter. 8M-90F(c): "I think it's somewhere southeast of here" 01007_ Subatomizers dissect the Corrupted Myomer Leg. 8M-90F(c): "I think it's somewhere southeast of here" 01086_ Lgt. Nuclear Core destroyed. 01096_ Lgt. Assault Rifle destroyed. 01097_ Dropped Heavy Explosive Trap. Map ----- +----------------------------------------------------+ | ?????????????????????????# ##??? ??????? | | ?????????????????????????## ##### ##???????? | | ??????????????????????????# # ##????????? | | ?????????????????????????## ####?????????? | | ?????????????????????????# ## # #??????????? | | ????????????????????????### ##??????????? | | ???????????????????????## ##???????????? | | ??????????????????????## # #?????????? | | ??????????????????????# ### #????????? | | ?????????????????????# ## #??# ??????? | | ?????????????????? ### ##?? # ###?????? | | ???????????????? ## ##?? #???????? | | ?????????????????### #?## ##? #???????? | | ???????????????????###?### ##? ##???????? | | ??????????????????????## #? ????????? | | ??????????????????????# #?? ?????????? | | ??????????????????????# #????????????? | | ??????????????????????# ##????????????? | | ??????????????????????# ##?????????????? | | ?????????????????????## ##??????????????? | | ?????????????????????# ########???????????????? | | ?????????????????????# ##?????????????????????? | | ?????????????????????## ##????????????????????? | | ??????????????????????# ##???????????????????? | | ????????????????????### #???????????????????? | | ????????????????????# &@ #???????????????????? | | ????????????????????# #???????????????????? | | ????????????????????# #???????????????????? | | ????????????????????# #???????????????????? | | ???????????????????# #???????????????????? | | ???????????????????# ??????????????????? | | ???????????????????# ?????????????????? | | ??????????????????? ????????????????? | | ?????????????????? ##???????????????? | | ?????????????????# R ##????????????????? | | ?????????????????# ####?????????????????? | | ?????????????????## ##????????????????????? | | ??????????????????# ##?????????????????????? | | ??????????????????# ##??????????????????????? | | ??????????????????? #????????????????????????? | | ????????????????????? ?????????????????????????? | | ?????????????????????????????????????????????????? | | ?????????????????????????????????????????????????? | | ?????????????????????????????????????????????????? | | ?????????????????????????????????????????????????? | | ?????????????????????????????????????????????????? | | ?????????????????????????????????????????????????? | | ?????????????????????????????????????????????????? | | ?????????????????????????????????????????????????? | | ?????????????????????????????????????????????????? | +----------------------------------------------------+ Best States ------------- Heat Dissipation 39 Energy Generation 14 Energy Capacity 160 Matter Stores 397 Matter Capacity 400 Sight Range 16 Terrain Scan Density 10 Evasion (%) 62 Recoil Reduction 2 Item Schematics ----------------- None Robot Schematics ------------------ None Fabricated ------------ Nothing Repaired ---------- Nothing Alien Tech Used ----------------- None Achievements -------------- None Challenges ------------ None Game ------ Seed TripodCoilOptics Manual? 0 Play Time 00:11:13 Cumulative 4.1 hours Start 2025.06.16 @ 23:56:06 End 2025.06.24 @ 14:00:02 Sessions 1 Manual Loads 0 Difficulty Rogue Special Mode None Game No. 9 Rogue 9 Adventurer 0 Explorer 0 Win Type - Total 0 Types 0/0/0/0/0/0/0/0/0/0 Lore% 6 Gallery% 9 Achievement% 9 Wizard Run 0 Options --------- Layout 1 ASCII 0 Keyboard 0 Movement Mouse Keybinds 0 Fullscreen 2 Font 24/Smallcaps Map View 76x35 Zoom Use 0% Tactical HUD 1 Map Filters NONE Filters NONE Steam 1 RUN: 53ac3e4d-3185-4a0b-8122-1da0d90738a7